[Event "*** Titled Tuesday Blitz"]
[Site "Chess.com"]
[Date "2021.03.09"]
[Round "9"]
[White "GigaQuparadze"]
[Black "dozer80"]
[Result "1-0"]
[WhiteElo "2956"]
[BlackElo "2625"]
[TimeControl "180+1"]
[EndTime "11:46:31 PST"]
[Termination "GigaQuparadze won by resignation"]

1. e4 {[%clk 0:03:00.9]} 1... c5 {[%clk 0:02:56.7]} 2. Ne2 {[%clk 0:03:00.4]}
2... e6 {[%clk 0:02:54.1]} 3. Nbc3 {[%clk 0:02:59.6]} 3... d6 {[%clk 0:02:45.1]}
4. g3 {[%clk 0:02:58]} 4... Nc6 {[%clk 0:02:44.2]} 5. Bg2 {[%clk 0:02:58.3]}
5... Nf6 {[%clk 0:02:35.9]} 6. d4 {[%clk 0:02:58.3]} 6... cxd4 {[%clk 0:02:35]}
7. Nxd4 {[%clk 0:02:59.2]} 7... Be7 {[%clk 0:02:29]} 8. O-O {[%clk 0:02:57.4]}
8... O-O {[%clk 0:02:28.5]} 9. h3 {[%clk 0:02:52.4]} 9... a6 {[%clk 0:02:26.7]}
10. Re1 {[%clk 0:02:47.2]} 10... Bd7 {[%clk 0:02:26.3]} 11. Nb3 {[%clk
0:02:42.9]} 11... b5 {[%clk 0:02:21.8]} 12. f4 {[%clk 0:02:38.2]} 12... Rc8
{[%clk 0:02:05.4]} 13. g4 {[%clk 0:02:36.1]} 13... b4 {[%clk 0:01:58.3]} 14. Ne2
{[%clk 0:02:35.9]} 14... d5 {[%clk 0:01:58.5]} 15. e5 {[%clk 0:02:32.7]} 15...
Ne4 {[%clk 0:01:58.6]} 16. Ned4 {[%clk 0:02:33]} 16... a5 {[%clk 0:01:34.4]} 17.
Nxc6 {[%clk 0:02:31.9]} 17... Bxc6 {[%clk 0:01:34.1]} 18. Nd4 {[%clk 0:02:32.2]}
18... Bb7 {[%clk 0:01:34.4]} 19. Be3 {[%clk 0:02:31.9]} 19... Re8 {[%clk
0:01:25.7]} 20. Qe2 {[%clk 0:02:22.8]} 20... Bh4 {[%clk 0:01:20.3]} 21. Red1
{[%clk 0:02:20.3]} 21... f6 {[%clk 0:01:20.3]} 22. Bxe4 {[%clk 0:02:15.4]} 22...
dxe4 {[%clk 0:01:20.3]} 23. Nf5 {[%clk 0:02:15.7]} 23... exf5 {[%clk 0:01:20]}
24. Rxd8 {[%clk 0:02:15]} 24... Rcxd8 {[%clk 0:01:17.1]} 25. gxf5 {[%clk
0:02:06.1]} 25... fxe5 {[%clk 0:01:16.1]} 26. Rd1 {[%clk 0:02:03.8]} 26... exf4
{[%clk 0:01:08.6]} 27. Bxf4 {[%clk 0:01:54]} 27... Bf6 {[%clk 0:00:48.4]} 28.
Qc4+ {[%clk 0:01:49.8]} 28... Kh8 {[%clk 0:00:46.4]} 29. Rxd8 {[%clk 0:01:49.1]}
29... Rxd8 {[%clk 0:00:46.3]} 30. Qc7 {[%clk 0:01:48.9]} 30... Ba6 {[%clk
0:00:08.1]} 31. Be5 {[%clk 0:01:47.5]} 31... Rd1+ {[%clk 0:00:08.1]} 32. Kh2
{[%clk 0:01:46.5]} 32... Rd2+ {[%clk 0:00:07.2]} 33. Kg3 {[%clk 0:01:45.8]}
33... h5 {[%clk 0:00:04]} 34. Bxf6 {[%clk 0:01:43.6]} 34... gxf6 {[%clk
0:00:04.9]} 35. Qb6 {[%clk 0:01:42.7]} 35... h4+ {[%clk 0:00:03.2]} 36. Kxh4
{[%clk 0:01:42]} 1-0

[Event "*** Titled Tuesday Blitz"]
[Site "Chess.com"]
[Date "2021.03.09"]
[Round "9"]
[White "Iball95"]
[Black "dropstoneDP"]
[Result "0-1"]
[WhiteElo "2653"]
[BlackElo "2890"]
[TimeControl "180+1"]
[EndTime "11:46:32 PST"]
[Termination "dropstoneDP won on time"]

1. e4 {[%clk 0:03:00.9]} 1... c5 {[%clk 0:02:57.6]} 2. Nf3 {[%clk 0:03:01]} 2...
d6 {[%clk 0:02:57.5]} 3. Nc3 {[%clk 0:03:00.8]} 3... Nf6 {[%clk 0:02:57.4]} 4.
d4 {[%clk 0:02:57.5]} 4... cxd4 {[%clk 0:02:58.3]} 5. Nxd4 {[%clk 0:02:56.5]}
5... a6 {[%clk 0:02:58.9]} 6. h3 {[%clk 0:02:53.5]} 6... e5 {[%clk 0:02:56.6]}
7. Nb3 {[%clk 0:02:47.9]} 7... Be7 {[%clk 0:02:54]} 8. g4 {[%clk 0:02:45.5]}
8... h6 {[%clk 0:02:52]} 9. Be3 {[%clk 0:02:41.6]} 9... Nbd7 {[%clk 0:02:51.7]}
10. a4 {[%clk 0:02:36.2]} 10... b6 {[%clk 0:02:48.7]} 11. Bg2 {[%clk 0:02:32.7]}
11... Bb7 {[%clk 0:02:47.7]} 12. O-O {[%clk 0:02:32.4]} 12... Nf8 {[%clk
0:02:44.8]} 13. f4 {[%clk 0:02:02.3]} 13... exf4 {[%clk 0:02:45.7]} 14. Bxf4
{[%clk 0:02:01.2]} 14... Ng6 {[%clk 0:02:45.6]} 15. Be3 {[%clk 0:01:56.6]} 15...
O-O {[%clk 0:02:42.1]} 16. Nd5 {[%clk 0:01:51.5]} 16... Nxd5 {[%clk 0:02:36]}
17. exd5 {[%clk 0:01:52.4]} 17... Bg5 {[%clk 0:02:36.5]} 18. Bf2 {[%clk
0:01:22.8]} 18... Re8 {[%clk 0:02:32.3]} 19. Qd4 {[%clk 0:01:18.7]} 19... Nf4
{[%clk 0:02:32]} 20. Qxb6 {[%clk 0:01:09.5]} 20... Ne2+ {[%clk 0:02:32]} 21. Kh1
{[%clk 0:00:58.2]} 21... Ng3+ {[%clk 0:02:31.1]} 22. Kh2 {[%clk 0:00:57.3]}
22... Nxf1+ {[%clk 0:02:30]} 23. Rxf1 {[%clk 0:00:58.2]} 23... Qxb6 {[%clk
0:02:08.5]} 24. Bxb6 {[%clk 0:00:59.1]} 24... Re2 {[%clk 0:02:08.9]} 25. Nd4
{[%clk 0:00:58.1]} 25... Rd2 {[%clk 0:02:09.2]} 26. Kh1 {[%clk 0:00:20.9]} 26...
Be3 {[%clk 0:02:00.7]} 27. Nb3 {[%clk 0:00:19.1]} 27... Rxg2 {[%clk 0:02:00.5]}
28. Bxe3 {[%clk 0:00:17]} 28... Bxd5 {[%clk 0:02:01.1]} 29. c4 {[%clk
0:00:15.7]} 29... Bb7 {[%clk 0:01:59.8]} 30. Na5 {[%clk 0:00:15.3]} 30... Rxb2+
{[%clk 0:01:51.6]} 31. Nxb7 {[%clk 0:00:14.2]} 31... Rxb7 {[%clk 0:01:52.5]} 32.
Rd1 {[%clk 0:00:14.3]} 32... Rc8 {[%clk 0:01:52.4]} 33. Rxd6 {[%clk 0:00:12.5]}
33... Rxc4 {[%clk 0:01:52.9]} 34. Rxa6 {[%clk 0:00:12.9]} 34... Rc2 {[%clk
0:01:53.4]} 35. Rb6 {[%clk 0:00:11.2]} 35... Rd7 {[%clk 0:01:47.8]} 36. Rb1
{[%clk 0:00:01.8]} 36... Rd3 {[%clk 0:01:47.4]} 37. Bb6 {[%clk 0:00:01.8]} 37...
Rxh3+ {[%clk 0:01:46.6]} 0-1

[Event "*** Titled Tuesday Blitz"]
[Site "Chess.com"]
[Date "2021.03.09"]
[Round "9"]
[White "Korchmar_Vasiliy"]
[Black "FMJoseHerrera"]
[Result "1-0"]
[WhiteElo "2641"]
[BlackElo "2517"]
[TimeControl "180+1"]
[EndTime "11:46:38 PST"]
[Termination "Korchmar_Vasiliy won by resignation"]

1. h4 {[%clk 0:03:00.9]} 1... d5 {[%clk 0:02:56.1]} 2. h5 {[%clk 0:03:01.2]}
2... h6 {[%clk 0:02:55.8]} 3. a4 {[%clk 0:03:01.6]} 3... c5 {[%clk 0:02:55.9]}
4. a5 {[%clk 0:03:01.6]} 4... a6 {[%clk 0:02:56.3]} 5. g3 {[%clk 0:03:01.3]}
5... Nc6 {[%clk 0:02:55.8]} 6. Bg2 {[%clk 0:03:01.7]} 6... e5 {[%clk 0:02:56.3]}
7. c4 {[%clk 0:03:00.3]} 7... Nf6 {[%clk 0:02:54.2]} 8. cxd5 {[%clk 0:02:58.8]}
8... Nxd5 {[%clk 0:02:53.6]} 9. Nc3 {[%clk 0:02:59.2]} 9... Ndb4 {[%clk
0:02:52.6]} 10. Nf3 {[%clk 0:02:56.3]} 10... Be7 {[%clk 0:02:48.8]} 11. d3
{[%clk 0:02:50.5]} 11... O-O {[%clk 0:02:46.4]} 12. Be3 {[%clk 0:02:42.2]} 12...
Nd4 {[%clk 0:02:29.3]} 13. O-O {[%clk 0:02:17.7]} 13... Ndc2 {[%clk 0:01:58.8]}
14. Rc1 {[%clk 0:02:18.1]} 14... Nxe3 {[%clk 0:01:55.9]} 15. fxe3 {[%clk
0:02:19]} 15... f6 {[%clk 0:01:42.9]} 16. Nh4 {[%clk 0:02:05.6]} 16... Bg4
{[%clk 0:01:27.2]} 17. Qb3+ {[%clk 0:01:58.4]} 17... Rf7 {[%clk 0:01:20.7]} 18.
Nd5 {[%clk 0:01:55.3]} 18... Bxh5 {[%clk 0:01:00.9]} 19. Nxb4 {[%clk 0:01:43.8]}
19... cxb4 {[%clk 0:01:01.8]} 20. Bd5 {[%clk 0:01:42.9]} 20... Rc8 {[%clk
0:00:44.7]} 21. g4 {[%clk 0:01:24.1]} 21... Rc5 {[%clk 0:00:18.9]} 22. Rxc5
{[%clk 0:01:17.2]} 22... Bxc5 {[%clk 0:00:19.8]} 23. gxh5 {[%clk 0:01:17.7]}
23... Bxe3+ {[%clk 0:00:19.7]} 24. Kg2 {[%clk 0:01:18.2]} 24... Qd7 {[%clk
0:00:19.8]} 25. Nf5 {[%clk 0:01:15.6]} 25... e4 {[%clk 0:00:17.3]} 26. Bxf7+
{[%clk 0:01:14.2]} 26... Kh7 {[%clk 0:00:17.2]} 27. Bg6+ {[%clk 0:00:59.6]}
27... Kh8 {[%clk 0:00:16.9]} 28. Qf7 {[%clk 0:01:00.1]} 28... Qxf5 {[%clk
0:00:16.4]} 1-0

[Event "*** Titled Tuesday Blitz"]
[Site "Chess.com"]
[Date "2021.03.09"]
[Round "9"]
[White "halldorgretar"]
[Black "OMGCovid-19"]
[Result "1-0"]
[WhiteElo "2241"]
[BlackElo "2071"]
[TimeControl "180+1"]
[EndTime "11:46:44 PST"]
[Termination "halldorgretar won by resignation"]

1. d4 {[%clk 0:03:00.9]} 1... e6 {[%clk 0:02:57.4]} 2. c4 {[%clk 0:02:57.7]}
2... f5 {[%clk 0:02:57.6]} 3. Nf3 {[%clk 0:02:55.5]} 3... Nf6 {[%clk 0:02:57.9]}
4. g3 {[%clk 0:02:54]} 4... Bb4+ {[%clk 0:02:58.2]} 5. Bd2 {[%clk 0:02:52.7]}
5... Bxd2+ {[%clk 0:02:57.6]} 6. Nbxd2 {[%clk 0:02:51.6]} 6... b6 {[%clk
0:02:56.7]} 7. Bg2 {[%clk 0:02:45.2]} 7... Bb7 {[%clk 0:02:56.9]} 8. O-O {[%clk
0:02:44.4]} 8... O-O {[%clk 0:02:56.4]} 9. Re1 {[%clk 0:02:42.3]} 9... d6 {[%clk
0:02:54.4]} 10. Qc2 {[%clk 0:02:39.1]} 10... Ne4 {[%clk 0:02:50.8]} 11. h4
{[%clk 0:02:29.4]} 11... Nd7 {[%clk 0:02:48.5]} 12. Ng5 {[%clk 0:02:18.4]} 12...
Nxg5 {[%clk 0:02:41.2]} 13. Bxb7 {[%clk 0:02:15.5]} 13... Rb8 {[%clk 0:02:40.2]}
14. Bc6 {[%clk 0:02:07.4]} 14... Nf7 {[%clk 0:02:32.1]} 15. e4 {[%clk
0:02:06.6]} 15... f4 {[%clk 0:02:28.9]} 16. Bxd7 {[%clk 0:01:39.1]} 16... Qxd7
{[%clk 0:02:26.4]} 17. Kg2 {[%clk 0:01:04.5]} 17... e5 {[%clk 0:02:20.4]} 18.
Nf3 {[%clk 0:01:03.3]} 18... Qg4 {[%clk 0:02:16.2]} 19. d5 {[%clk 0:00:49.4]}
19... g5 {[%clk 0:02:03.4]} 20. Nh2 {[%clk 0:00:46.2]} 20... f3+ {[%clk
0:01:58.4]} 21. Nxf3 {[%clk 0:00:44.2]} 21... gxh4 {[%clk 0:01:56.9]} 22. Nxh4
{[%clk 0:00:43.3]} 22... Ng5 {[%clk 0:01:53.8]} 23. Qe2 {[%clk 0:00:40.4]} 23...
Nf3 {[%clk 0:01:29]} 24. Nxf3 {[%clk 0:00:37.4]} 24... Rf7 {[%clk 0:01:20.4]}
25. Nh4 {[%clk 0:00:35.9]} 25... Qg5 {[%clk 0:01:19.2]} 26. Rh1 {[%clk
0:00:31.7]} 26... Rbf8 {[%clk 0:01:18.2]} 27. Raf1 {[%clk 0:00:32]} 27... Rf4
{[%clk 0:01:00.3]} 28. Nf5 {[%clk 0:00:28.2]} 28... Rg4 {[%clk 0:00:51.6]} 29.
Qxg4 {[%clk 0:00:26]} 29... Qxg4 {[%clk 0:00:51]} 30. Nh6+ {[%clk 0:00:25.9]}
1-0

[Event "*** Titled Tuesday Blitz"]
[Site "Chess.com"]
[Date "2021.03.09"]
[Round "9"]
[White "SirStrateg"]
[Black "Vsevolod_Ovchinnikov"]
[Result "1-0"]
[WhiteElo "2614"]
[BlackElo "2511"]
[TimeControl "180+1"]
[EndTime "11:46:45 PST"]
[Termination "SirStrateg won on time"]

1. e4 {[%clk 0:02:58.2]} 1... e6 {[%clk 0:02:59.7]} 2. d3 {[%clk 0:02:54.3]}
2... d5 {[%clk 0:03:00.6]} 3. Nd2 {[%clk 0:02:54.5]} 3... c5 {[%clk 0:03:01]} 4.
Ngf3 {[%clk 0:02:55.1]} 4... g6 {[%clk 0:03:01.6]} 5. g3 {[%clk 0:02:55.7]} 5...
Bg7 {[%clk 0:03:02.1]} 6. Bg2 {[%clk 0:02:56.4]} 6... Ne7 {[%clk 0:03:02.7]} 7.
O-O {[%clk 0:02:57.2]} 7... Nbc6 {[%clk 0:03:03.3]} 8. Re1 {[%clk 0:02:57.8]}
8... b6 {[%clk 0:03:03.7]} 9. h4 {[%clk 0:02:55.1]} 9... h6 {[%clk 0:03:02.9]}
10. c3 {[%clk 0:02:53.4]} 10... a5 {[%clk 0:03:02.2]} 11. a4 {[%clk 0:02:53]}
11... Ba6 {[%clk 0:03:00.2]} 12. exd5 {[%clk 0:02:52.1]} 12... exd5 {[%clk
0:02:59.8]} 13. Nb3 {[%clk 0:02:52.1]} 13... O-O {[%clk 0:02:56.8]} 14. Bf4
{[%clk 0:02:51.4]} 14... Kh7 {[%clk 0:02:52.9]} 15. d4 {[%clk 0:02:51.6]} 15...
c4 {[%clk 0:02:33]} 16. Nbd2 {[%clk 0:02:52]} 16... f6 {[%clk 0:02:30.7]} 17.
Qc2 {[%clk 0:02:45.8]} 17... Bc8 {[%clk 0:02:28.7]} 18. h5 {[%clk 0:02:41]}
18... Bf5 {[%clk 0:02:27.9]} 19. hxg6+ {[%clk 0:02:41.4]} 19... Bxg6 {[%clk
0:02:27.9]} 20. Qd1 {[%clk 0:02:40.2]} 20... Qd7 {[%clk 0:02:20.3]} 21. Nh4
{[%clk 0:02:39.9]} 21... Bd3 {[%clk 0:02:20.2]} 22. b3 {[%clk 0:02:35.8]} 22...
Rae8 {[%clk 0:01:49.9]} 23. bxc4 {[%clk 0:02:35.7]} 23... dxc4 {[%clk
0:01:50.8]} 24. Qh5 {[%clk 0:02:30.2]} 24... Ng6 {[%clk 0:01:40.1]} 25. Nxg6
{[%clk 0:02:25.6]} 25... Bxg6 {[%clk 0:01:41]} 26. Qb5 {[%clk 0:02:25.2]} 26...
Nb8 {[%clk 0:01:06]} 27. Qxc4 {[%clk 0:02:20.7]} 27... Rc8 {[%clk 0:01:05.4]}
28. Qb3 {[%clk 0:02:18.5]} 28... Qa7 {[%clk 0:00:55.3]} 29. Ne4 {[%clk
0:02:13.3]} 29... Rfd8 {[%clk 0:00:40.7]} 30. Nd6 {[%clk 0:02:10.3]} 30... Rc6
{[%clk 0:00:40.5]} 31. Bxc6 {[%clk 0:02:05.6]} 31... Nxc6 {[%clk 0:00:41.4]} 32.
Nb5 {[%clk 0:02:03.2]} 32... Qd7 {[%clk 0:00:40]} 33. Bc7 {[%clk 0:01:57.7]}
33... Rc8 {[%clk 0:00:39.6]} 34. Bxb6 {[%clk 0:01:57.6]} 34... Qh3 {[%clk
0:00:33.6]} 35. Qe6 {[%clk 0:01:53.3]} 35... Bf5 {[%clk 0:00:33.9]} 36. Qd5
{[%clk 0:01:50.6]} 36... Nb8 {[%clk 0:00:21.2]} 37. Qg2 {[%clk 0:01:47.1]} 37...
Qh5 {[%clk 0:00:19.2]} 38. Bxa5 {[%clk 0:01:44.2]} 38... Nc6 {[%clk 0:00:14.9]}
39. Bb6 {[%clk 0:01:41.8]} 39... Bd7 {[%clk 0:00:11.7]} 40. Nd6 {[%clk
0:01:40.3]} 40... Rb8 {[%clk 0:00:07.3]} 41. a5 {[%clk 0:01:40.8]} 1-0

[Event "*** Titled Tuesday Blitz"]
[Site "Chess.com"]
[Date "2021.03.09"]
[Round "9"]
[White "Supernotar"]
[Black "pastouche06"]
[Result "0-1"]
[WhiteElo "2711"]
[BlackElo "2568"]
[TimeControl "180+1"]
[EndTime "11:46:46 PST"]
[Termination "pastouche06 won by resignation"]

1. d4 {[%clk 0:03:00.9]} 1... d5 {[%clk 0:02:59.8]} 2. c4 {[%clk 0:03:01.2]}
2... e6 {[%clk 0:02:59]} 3. Nf3 {[%clk 0:03:00.8]} 3... Nf6 {[%clk 0:02:58.5]}
4. e3 {[%clk 0:03:01.2]} 4... a6 {[%clk 0:02:56.8]} 5. Nbd2 {[%clk 0:03:00.9]}
5... dxc4 {[%clk 0:02:53.7]} 6. Bxc4 {[%clk 0:03:00.7]} 6... b5 {[%clk
0:02:53.2]} 7. Bd3 {[%clk 0:02:58.7]} 7... c5 {[%clk 0:02:51.8]} 8. b3 {[%clk
0:02:57.2]} 8... Bb7 {[%clk 0:02:50.7]} 9. Qe2 {[%clk 0:02:56.9]} 9... cxd4
{[%clk 0:02:43.8]} 10. Nxd4 {[%clk 0:02:55]} 10... Bxg2 {[%clk 0:02:35.5]} 11.
Rg1 {[%clk 0:02:55]} 11... Bb7 {[%clk 0:02:35.9]} 12. Bb2 {[%clk 0:02:54.6]}
12... Nbd7 {[%clk 0:02:35]} 13. O-O-O {[%clk 0:02:41]} 13... Qa5 {[%clk
0:02:16.8]} 14. Kb1 {[%clk 0:02:40]} 14... g6 {[%clk 0:01:58.4]} 15. Rc1 {[%clk
0:02:11.7]} 15... Bg7 {[%clk 0:01:54.6]} 16. h4 {[%clk 0:02:04.5]} 16... O-O
{[%clk 0:01:51.2]} 17. h5 {[%clk 0:02:02.9]} 17... Rfc8 {[%clk 0:01:35.4]} 18.
Rxc8+ {[%clk 0:01:57]} 18... Rxc8 {[%clk 0:01:34.7]} 19. hxg6 {[%clk 0:01:57.4]}
19... hxg6 {[%clk 0:01:35.6]} 20. Nxe6 {[%clk 0:01:46]} 20... fxe6 {[%clk
0:01:24.6]} 21. Rxg6 {[%clk 0:01:45.7]} 21... Kf7 {[%clk 0:01:14.8]} 22. Rxg7+
{[%clk 0:01:39.3]} 22... Kxg7 {[%clk 0:01:14.8]} 23. Qg4+ {[%clk 0:01:32.9]}
23... Kf8 {[%clk 0:01:12]} 24. Qxe6 {[%clk 0:01:03.4]} 24... Rc6 {[%clk
0:00:42.6]} 25. Qh3 {[%clk 0:00:45]} 25... Qxd2 {[%clk 0:00:39.6]} 26. Qf1
{[%clk 0:00:42.3]} 26... Rd6 {[%clk 0:00:32.4]} 27. Bc2 {[%clk 0:00:39]} 27...
Be4 {[%clk 0:00:30.8]} 28. Bxe4 {[%clk 0:00:38.6]} 28... Nxe4 {[%clk 0:00:31.7]}
0-1

[Event "*** Titled Tuesday Blitz"]
[Site "Chess.com"]
[Date "2021.03.09"]
[Round "9"]
[White "ajdemipopushi"]
[Black "chescomhuynya"]
[Result "0-1"]
[WhiteElo "2390"]
[BlackElo "2589"]
[TimeControl "180+1"]
[EndTime "11:46:59 PST"]
[Termination "chescomhuynya won on time"]

1. Nf3 {[%clk 0:03:00.9]} 1... Nf6 {[%clk 0:02:56.9]} 2. g3 {[%clk 0:02:57.2]}
2... g6 {[%clk 0:02:55.2]} 3. Bg2 {[%clk 0:02:57.6]} 3... Bg7 {[%clk 0:02:54.4]}
4. O-O {[%clk 0:02:57.8]} 4... O-O {[%clk 0:02:55.1]} 5. c4 {[%clk 0:02:58.4]}
5... c6 {[%clk 0:02:54.6]} 6. d4 {[%clk 0:02:57.2]} 6... d5 {[%clk 0:02:55.1]}
7. b3 {[%clk 0:02:57.4]} 7... dxc4 {[%clk 0:02:52.4]} 8. bxc4 {[%clk 0:02:57.3]}
8... c5 {[%clk 0:02:53.3]} 9. Bb2 {[%clk 0:02:57.7]} 9... Qb6 {[%clk 0:02:50.2]}
10. Qb3 {[%clk 0:02:57.2]} 10... Nfd7 {[%clk 0:02:50.7]} 11. e3 {[%clk
0:02:46.4]} 11... Nc6 {[%clk 0:02:43.1]} 12. Nbd2 {[%clk 0:02:27.8]} 12... cxd4
{[%clk 0:02:42.9]} 13. exd4 {[%clk 0:02:25.5]} 13... Nc5 {[%clk 0:02:42.6]} 14.
Qa3 {[%clk 0:01:52.1]} 14... Bf5 {[%clk 0:02:18.8]} 15. Nb3 {[%clk 0:01:39.6]}
15... Nd3 {[%clk 0:02:17.2]} 16. Bc3 {[%clk 0:01:29.6]} 16... Rfd8 {[%clk
0:01:44.5]} 17. Rad1 {[%clk 0:01:20.6]} 17... e5 {[%clk 0:01:33.4]} 18. Nxe5
{[%clk 0:00:24.3]} 18... Ncxe5 {[%clk 0:01:32.7]} 19. dxe5 {[%clk 0:00:24.3]}
19... Nxf2 {[%clk 0:00:57.9]} 20. Rxd8+ {[%clk 0:00:16.1]} 20... Rxd8 {[%clk
0:00:57.5]} 21. Rxf2 {[%clk 0:00:15.4]} 21... Rd1+ {[%clk 0:00:57]} 22. Bf1
{[%clk 0:00:14.2]} 22... Bh3 {[%clk 0:00:57.2]} 23. Bd4 {[%clk 0:00:11.3]} 23...
Qc6 {[%clk 0:00:41.3]} 0-1

[Event "*** Titled Tuesday Blitz"]
[Site "Chess.com"]
[Date "2021.03.09"]
[Round "9"]
[White "Lestofante90"]
[Black "Leo_C"]
[Result "1-0"]
[WhiteElo "2711"]
[BlackElo "2434"]
[TimeControl "180+1"]
[EndTime "11:47:07 PST"]
[Termination "Lestofante90 won by checkmate"]

1. e4 {[%clk 0:02:58.2]} 1... c6 {[%clk 0:02:51.4]} 2. d3 {[%clk 0:02:56.5]}
2... d5 {[%clk 0:02:49.8]} 3. Nf3 {[%clk 0:02:56.7]} 3... Bg4 {[%clk 0:02:44.2]}
4. Nbd2 {[%clk 0:02:56]} 4... Nf6 {[%clk 0:02:42.5]} 5. g3 {[%clk 0:02:52.4]}
5... Nbd7 {[%clk 0:02:36.4]} 6. Bg2 {[%clk 0:02:49.4]} 6... e5 {[%clk
0:02:36.2]} 7. O-O {[%clk 0:02:39.5]} 7... Bd6 {[%clk 0:02:35.6]} 8. h3 {[%clk
0:02:35.8]} 8... Bh5 {[%clk 0:02:34.2]} 9. Qe1 {[%clk 0:02:35.6]} 9... O-O
{[%clk 0:02:32.7]} 10. Nh4 {[%clk 0:02:35.2]} 10... Re8 {[%clk 0:02:27.2]} 11.
a4 {[%clk 0:02:24.3]} 11... a5 {[%clk 0:02:23.5]} 12. Nf5 {[%clk 0:02:21.1]}
12... Bf8 {[%clk 0:02:21.5]} 13. Nf3 {[%clk 0:02:04.4]} 13... Bg6 {[%clk
0:02:07.3]} 14. N3h4 {[%clk 0:02:03.8]} 14... Nc5 {[%clk 0:01:49.4]} 15. Qe2
{[%clk 0:02:02.4]} 15... Qc7 {[%clk 0:01:35.4]} 16. b3 {[%clk 0:02:01.8]} 16...
Rad8 {[%clk 0:01:33.6]} 17. Bb2 {[%clk 0:01:57]} 17... b6 {[%clk 0:01:21.6]} 18.
Rae1 {[%clk 0:01:54.3]} 18... d4 {[%clk 0:01:07.6]} 19. Bc1 {[%clk 0:01:52.7]}
19... Ne6 {[%clk 0:01:05.7]} 20. f4 {[%clk 0:01:51.1]} 20... Bb4 {[%clk
0:01:03.7]} 21. Rd1 {[%clk 0:01:51]} 21... Nd7 {[%clk 0:01:00]} 22. Nxg7 {[%clk
0:01:49.6]} 22... Nxg7 {[%clk 0:00:58.2]} 23. f5 {[%clk 0:01:49.9]} 23... Bh5
{[%clk 0:00:57.5]} 24. g4 {[%clk 0:01:50.1]} 24... Nf6 {[%clk 0:00:56.5]} 25.
Bf3 {[%clk 0:01:42.1]} 25... Be7 {[%clk 0:00:50.7]} 26. Ng2 {[%clk 0:01:38.4]}
26... Kh8 {[%clk 0:00:30.9]} 27. gxh5 {[%clk 0:01:38.2]} 27... Rg8 {[%clk
0:00:31]} 28. Kh1 {[%clk 0:01:36.9]} 28... b5 {[%clk 0:00:23.4]} 29. Rg1 {[%clk
0:01:33.4]} 29... bxa4 {[%clk 0:00:23]} 30. bxa4 {[%clk 0:01:34.3]} 30... Rdf8
{[%clk 0:00:22.6]} 31. Rdf1 {[%clk 0:01:26.9]} 31... Rb8 {[%clk 0:00:18.9]} 32.
Ne1 {[%clk 0:01:26.6]} 32... Rb1 {[%clk 0:00:18.5]} 33. Bd2 {[%clk 0:01:24.8]}
33... Bb4 {[%clk 0:00:16.6]} 34. h6 {[%clk 0:01:22]} 34... Nge8 {[%clk
0:00:16.1]} 35. Rxg8+ {[%clk 0:01:21.5]} 35... Nxg8 {[%clk 0:00:17]} 36. Rg1
{[%clk 0:01:13.5]} 36... f6 {[%clk 0:00:15.6]} 37. Bh5 {[%clk 0:01:10.1]} 37...
Qe7 {[%clk 0:00:12.8]} 38. Bxe8 {[%clk 0:01:05.1]} 38... Qxe8 {[%clk 0:00:12.6]}
39. Qg2 {[%clk 0:01:05.5]} 39... Qf7 {[%clk 0:00:10.1]} 40. Qg7+ {[%clk
0:01:05.5]} 40... Qxg7 {[%clk 0:00:10.3]} 41. hxg7# {[%clk 0:01:06.4]} 1-0

[Event "*** Titled Tuesday Blitz"]
[Site "Chess.com"]
[Date "2021.03.09"]
[Round "9"]
[White "LenkaPtacnikova"]
[Black "Etud-otradnoe"]
[Result "0-1"]
[WhiteElo "2132"]
[BlackElo "2320"]
[TimeControl "180+1"]
[EndTime "11:47:12 PST"]
[Termination "Etud-otradnoe won by resignation"]

1. c4 {[%clk 0:01:58.7]} 1... e6 {[%clk 0:02:58.3]} 2. g3 {[%clk 0:01:59.1]}
2... d5 {[%clk 0:02:56.7]} 3. Bg2 {[%clk 0:01:59.4]} 3... Nf6 {[%clk 0:02:56.7]}
4. Nf3 {[%clk 0:01:59.5]} 4... Be7 {[%clk 0:02:57.3]} 5. O-O {[%clk 0:01:59.5]}
5... O-O {[%clk 0:02:57.3]} 6. b3 {[%clk 0:01:59.2]} 6... c6 {[%clk 0:02:56.9]}
7. Bb2 {[%clk 0:01:58.4]} 7... a5 {[%clk 0:02:55.8]} 8. d4 {[%clk 0:01:54.8]}
8... a4 {[%clk 0:02:51]} 9. Nc3 {[%clk 0:01:54.9]} 9... a3 {[%clk 0:02:12.1]}
10. Bc1 {[%clk 0:01:53.9]} 10... Qa5 {[%clk 0:01:46.9]} 11. Bd2 {[%clk
0:01:52.2]} 11... Bb4 {[%clk 0:01:46.7]} 12. Rc1 {[%clk 0:01:46.2]} 12... Na6
{[%clk 0:01:41.9]} 13. c5 {[%clk 0:01:42.5]} 13... b6 {[%clk 0:01:33.4]} 14.
cxb6 {[%clk 0:01:23.9]} 14... Nd7 {[%clk 0:01:32.6]} 15. Na4 {[%clk 0:01:20.9]}
15... Nxb6 {[%clk 0:01:28.6]} 16. Nxb6 {[%clk 0:01:13.6]} 16... Qxb6 {[%clk
0:01:27.4]} 17. Bxb4 {[%clk 0:01:12.7]} 17... Nxb4 {[%clk 0:01:27.5]} 18. Qd2
{[%clk 0:01:11.6]} 18... Ba6 {[%clk 0:01:21.4]} 19. Ne5 {[%clk 0:01:07.1]} 19...
Ra7 {[%clk 0:01:13.9]} 20. Rfe1 {[%clk 0:00:55.7]} 20... f6 {[%clk 0:01:13.7]}
21. Nf3 {[%clk 0:00:55.1]} 21... Rc8 {[%clk 0:01:08.8]} 22. Rc5 {[%clk
0:00:53.2]} 22... e5 {[%clk 0:00:47.4]} 23. Rec1 {[%clk 0:00:48.4]} 23... Re8
{[%clk 0:00:43.6]} 24. dxe5 {[%clk 0:00:42.9]} 24... fxe5 {[%clk 0:00:43.2]} 25.
e3 {[%clk 0:00:42.6]} 25... Rae7 {[%clk 0:00:39]} 26. Bf1 {[%clk 0:00:31.6]}
26... Bxf1 {[%clk 0:00:36.5]} 27. Kxf1 {[%clk 0:00:32.5]} 27... Rf8 {[%clk
0:00:32.5]} 28. Kg1 {[%clk 0:00:23.9]} 28... Rxf3 {[%clk 0:00:31.3]} 0-1